bitfinex/quotes_SOLUSD_20240930
["timestamp","ask_amount","ask_price","bid_price","bid_amount"]
[1727714584420,6.4611,154.78,154.74,6.4624]
[1727714585994,31.8184,154.83,154.75,0.64431414]
[1727714586196,6.4598,154.81,154.77,6.4611]
[1727714586391,6.4598,154.81,154.78,0.75619916]
[1727714586610,6.4598,154.81,154.79,1.29182155]
[1727714587019,6.4598,154.81,154.77,6.4611]
[1727714587609,6.4598,154.81,154.76,6.4615]
[1727714590095,6.4598,154.81,154.77,6.4611]
[1727714591199,6.4598,154.81,154.76,6.4614]
[1727714591401,16.1459,154.84,154.74,42.5512228]
[1727714591711,1.6148514,154.83,154.75,6.462]
[1727714593227,6.4604,154.79,154.75,6.462]
[1727714593823,6.4596,154.81,154.77,6.4611]
[1727714593996,16.1459,154.84,154.7,21.91277572]
[1727714593997,1.61477592,154.83,154.72,20.0712228]
[1727714594206,6.461,154.78,154.74,6.4623]
[1727714594408,1.61501216,154.81,154.73,16.1564]
[1727714594617,6.4612,154.77,154.73,22.6192]
[1727714595422,6.4609,154.78,154.74,6.4624]
[1727714595609,6.46,154.8,154.76,6.4616]
[1727714595807,6.46,154.8,154.75,22.6163]
[1727714596011,6.4603,154.79,154.75,22.6163]
[1727714597025,6.4603,154.79,154.76,1.2919119]
[1727714597232,6.46,154.8,154.76,7.7534119]
[1727714597528,6.46,154.8,154.76,6.4615]
[1727714597723,6.46,154.8,154.77,1.2765363]
[1727714598434,6.46,154.8,154.76,6.4615]
[1727714598801,6.4592,154.82,154.78,6.4607]
[1727714599003,6.4592,154.82,154.79,1.28985745]
[1727714601123,6.4581,154.85,154.81,6.4594]
[1727714601934,15.386,154.87,154.79,16.1505]
[1727714602237,17.75842537,154.86,154.77,16.4429]
[1727714602535,6.4595,154.81,154.77,6.4609]
[1727714602908,6.46,154.8,154.76,22.6147]
[1727714604330,6.4596,154.81,154.76,22.6147]
[1727714607027,6.4596,154.81,154.77,7.03047318]
[1727714607327,6.4596,154.81,154.77,6.4611]
[1727714607535,6.4596,154.81,154.78,1.29180701]
[1727714607715,6.4596,154.81,154.77,6.4611]
[1727714608319,16.146,154.84,154.76,16.1533]
[1727714608516,6.4592,154.82,154.78,6.4607]
[1727714608704,6.4592,154.82,154.79,1.29177739]
[1727714609517,6.4595,154.81,154.79,1.29177739]
[1727714609722,6.4595,154.81,154.77,6.461]
[1727714610616,6.4593,154.82,154.78,6.4607]
[1727714610817,6.4593,154.82,154.76,16.1533]
[1727714610818,6.4597,154.81,154.77,6.461]
[1727714612317,6.4597,154.81,154.78,1.29179653]
[1727714612513,6.4592,154.82,154.78,7.75249653]
[1727714613342,31.5293,154.87,154.78,20.0712228]
[1727714613528,31.5293,154.87,154.8,16.1495]
[1727714613836,6.4583,154.84,154.8,16.1495]
[1727714614017,6.4591,154.82,154.77,16.1522]
[1727714614215,6.4596,154.81,154.77,22.6131]
[1727714614416,1.61467721,154.84,154.75,6.4618]
[1727714614622,6.4604,154.79,154.75,6.4618]
[1727714615239,6.4608,154.78,154.74,22.6176]
[1727714615818,6.4605,154.79,154.74,22.6176]
[1727714616034,15.7333,154.8,154.74,22.6176]
[1727714616222,6.4608,154.78,154.74,22.6176]
[1727714617624,22.4768,154.83,154.74,36.2265228]
[1727714617625,6.3298,154.83,154.74,36.2265228]
[1727714617938,6.4596,154.81,154.76,6.4615]
[1727714620138,6.4596,154.81,154.77,7.75291484]
[1727714621429,6.3298,154.83,154.77,6.4611]
[1727714621744,22.1919,154.84,154.78,16.1515]
[1727714622153,6.0242,154.87,154.81,6.4594]
[1727714622441,6.4577,154.86,154.82,1.03503813]
[1727714622830,6.4577,154.86,154.82,7.49403813]
[1727714623242,6.4577,154.86,154.82,6.459]
[1727714623747,12.4816,154.87,154.82,6.459]
[1727714624052,6.4574,154.87,154.82,6.459]
[1727714624424,6.4574,154.87,154.83,6.4586]
[1727714624652,21.9124,154.88,154.84,7.14835691]
[1727714625643,6.4566,154.88,154.84,7.14835691]
[1727714626041,6.4563,154.89,154.84,7.14835691]
[1727714626236,6.2966,154.91,154.86,6.4574]
[1727714626434,6.4554,154.91,154.87,0.69002321]
[1727714627252,6.4554,154.91,154.86,6.4574]
[1727714627543,6.4558,154.9,154.85,6.4577]
[1727714628146,6.4558,154.9,154.84,16.1451]
[1727714628835,15.1921,154.92,154.84,16.1451]
[1727714629033,6.4567,154.88,154.84,22.6033]
[1727714629935,6.4563,154.89,154.84,22.6033]
[1727714632051,16.80600691,154.92,154.84,16.1451]
[1727714632345,6.4571,154.87,154.83,6.4586]
[1727714632551,6.4571,154.87,154.82,6.459]
[1727714633957,6.4571,154.87,154.81,16.1484]
[1727714634167,6.4571,154.87,154.83,6.4586]
[1727714634761,6.4571,154.87,154.84,1.29126933]
[1727714635171,16.1388,154.91,154.84,1.29126933]
[1727714635357,6.4567,154.88,154.83,6.4586]
[1727714636474,6.4571,154.87,154.83,6.4586]
[1727714637546,6.4574,154.86,154.82,6.4589]
[1727714638461,1.61409234,154.9,154.81,16.1484]
[1727714638657,6.4571,154.87,154.83,6.4586]
[1727714640454,6.4569,154.88,154.84,1.29131517]
[1727714640763,6.4562,154.89,154.84,6.4579]
[1727714641085,15.1921,154.92,154.85,17.435315]
[1727714641870,21.6471,154.92,154.88,6.4562]
[1727714642056,6.4547,154.93,154.89,7.74682144]
[1727714643181,6.4547,154.93,154.89,6.4559]
[1727714643962,6.4547,154.93,154.87,16.1421]
[1727714644161,6.4547,154.93,154.88,6.4565]
[1727714644497,6.4773,154.95,154.87,22.5989]
[1727714644498,6.4554,154.91,154.87,22.5989]
[1727714644684,6.456,154.9,154.86,6.4573]
[1727714644988,6.456,154.9,154.85,6.4577]
[1727714645478,6.456,154.9,154.86,6.4574]
[1727714645861,6.4554,154.91,154.86,6.4574]
[1727714646061,6.455,154.92,154.87,7.74760859]
[1727714646678,6.455,154.92,154.88,6.4564]
[1727714647182,6.455,154.92,154.89,1.29087313]
[1727714647958,6.4546,154.93,154.89,7.74687313]
[1727714649791,6.4773,154.95,154.9,16.1388]
[1727714649986,6.4773,154.95,154.91,1.29064783]
[1727714650169,6.4537,154.95,154.91,7.74574783]
[1727714651374,22.9794,154.96,154.92,6.4549]
[1727714651562,22.9794,154.96,154.93,1.29061454]
[1727714652389,22.9794,154.96,154.92,6.4549]
[1727714652882,6.454,154.95,154.9,22.5942]
[1727714653084,6.4541,154.94,154.9,22.5942]
[1727714653793,16.5261,154.96,154.87,16.142]
[1727714653794,1.61331385,154.95,154.87,16.142]
[1727714653985,6.4557,154.9,154.87,16.142]
[1727714654678,6.4557,154.9,154.86,6.4573]
[1727714654875,16.5261,154.96,154.91,6.4552]
[1727714655081,6.453,154.97,154.92,6.4549]
[1727714655895,6.453,154.97,154.93,7.74504699]
[1727714656276,6.453,154.97,154.93,6.4545]
[1727714656675,6.453,154.97,154.94,1.2905036]
[1727714659677,1.61313598,154.98,154.9,22.5943]
[1727714659869,6.4545,154.93,154.89,6.456]
[1727714660998,6.4542,154.94,154.89,6.456]
[1727714661195,6.4545,154.93,154.89,6.456]
[1727714661799,16.1314,154.98,154.87,16.1418]
[1727714662106,6.4541,154.94,154.9,6.4557]
[1727714663694,6.4541,154.94,154.91,1.29075369]
[1727714664197,6.4548,154.93,154.89,22.5962]
[1727714664394,6.4549,154.92,154.89,16.1402]
[1727714666392,16.1334,154.96,154.89,16.1402]
[1727714666592,22.5129,154.99,154.9,1.29072907]
[1727714666986,6.4539,154.95,154.91,6.4553]
[1727714667187,6.4539,154.95,154.92,1.29069867]
[1727714667408,22.5129,154.99,154.89,16.1402]
[1727714667604,16.1323,154.97,154.86,20.0712228]
[1727714667805,21.7479,154.97,154.82,6.74138336]
[1727714668111,6.4562,154.89,154.84,6.4582]
[1727714668314,6.4566,154.88,154.83,6.4586]
[1727714668788,15.1444,154.89,154.82,16.1468]
[1727714668983,15.1444,154.89,154.85,6.4578]
[1727714669684,6.4558,154.9,154.85,6.4578]
[1727714670106,13.0589,154.91,154.86,7.74834319]
[1727714670285,13.0589,154.91,154.86,6.4572]
[1727714673915,6.6035,154.91,154.84,16.1449]
[1727714674101,6.4558,154.9,154.85,6.4578]
[1727714674299,6.6035,154.91,154.86,1.29108961]
[1727714674530,13.059,154.91,154.86,6.4573]
[1727714674688,13.059,154.91,154.87,1.29107315]
[1727714674895,13.059,154.91,154.88,1.29107386]
[1727714675122,13.059,154.91,154.84,16.1449]
[1727714675123,6.6035,154.91,154.87,6.4569]
[1727714675288,6.6035,154.91,154.88,1.29099906]
[1727714675489,6.455,154.92,154.87,6.4569]
[1727714675984,6.4553,154.91,154.87,6.4569]
[1727714676804,6.4557,154.9,154.86,16.143]
[1727714677017,1.61379099,154.92,154.83,22.6045]
[1727714677213,6.4571,154.87,154.83,22.6045]
[1727714678114,6.4566,154.88,154.83,22.6045]
[1727714678921,6.4566,154.88,154.84,6.4582]
[1727714679807,6.4562,154.89,154.85,1.29130047]
[1727714680007,6.4562,154.89,154.85,7.74900047]
[1727714680209,6.4562,154.89,154.84,6.4581]
[1727714681919,6.4558,154.9,154.86,6.4573]
[1727714682127,6.4558,154.9,154.87,1.29110483]
[1727714682328,15.87,154.93,154.85,20.0712228]
[1727714682630,15.87,154.93,154.83,32.2931]
[1727714682631,15.87,154.93,154.89,6.4559]
[1727714682805,6.0308,154.95,154.91,6.4553]
[1727714683005,6.0308,154.95,154.92,1.29069271]
[1727714683199,6.0308,154.95,154.91,6.4553]
[1727714683599,6.0308,154.95,154.92,1.29069348]
[1727714683811,6.4533,154.96,154.92,1.29069348]
[1727714684007,6.4533,154.96,154.91,6.4553]
[1727714685007,6.4533,154.96,154.92,7.74558092]
[1727714685332,6.4533,154.96,154.92,6.4549]
[1727714686015,6.4533,154.96,154.91,6.4553]
[1727714687103,6.4533,154.96,154.92,7.7454118]
[1727714687299,6.4533,154.96,154.92,6.4548]
[1727714688713,21.7862,154.98,154.93,7.74471561]
[1727714690618,6.4525,154.98,154.93,7.74471561]
[1727714691106,6.4525,154.98,154.94,6.454]
[1727714691306,6.4525,154.98,154.95,1.29049034]
[1727714691724,16.2705,155.02,154.96,0.96917815]
[1727714691942,6.4516,155.0,154.96,23.55507815]
[1727714692224,6.4516,155.0,154.96,16.1327]
[1727714692445,6.4516,155.0,154.97,0.97216958]
[1727714692810,6.4516,155.0,154.96,16.1327]
[1727714693109,6.4525,154.98,154.94,6.454]
[1727714693303,6.4525,154.98,154.95,1.29049163]
[1727714694123,6.452,154.99,154.95,6.4536]
[1727714694621,16.2705,155.02,154.96,1.29036889]
[1727714695016,16.2705,155.02,154.95,16.1338]
[1727714696132,6.4512,155.01,154.97,6.4527]
[1727714697528,6.4516,155.0,154.96,6.4531]
[1727714697733,6.4516,155.0,154.95,22.5873]
[1727714698432,16.2705,155.02,154.95,16.1338]
[1727714698614,6.4521,154.99,154.95,16.1338]
[1727714698817,6.4521,154.99,154.95,22.5872]
[1727714699409,17.88342759,155.02,154.95,16.1338]
[1727714699609,6.4517,155.0,154.95,22.5873]
[1727714700237,6.4523,154.99,154.95,22.5873]
[1727714700733,6.4524,154.98,154.95,16.1338]
[1727714700923,6.4521,154.99,154.96,0.94902248]
[1727714701115,16.2705,155.02,154.96,0.94902248]
[1727714701332,0.8471714,155.03,154.97,16.1319]
[1727714701512,0.8471714,155.03,154.98,0.9489]
[1727714702434,0.8471714,155.03,154.97,22.2569]
[1727714702613,0.8471714,155.03,154.97,22.5846]
[1727714702815,6.4517,155.0,154.96,6.4532]
[1727714703021,18.58621045,155.03,154.94,16.1345]
[1727714703219,18.58621045,155.03,154.92,15.5684]
[1727714703220,6.0067,155.02,154.92,15.5684]
[1727714703424,6.4525,154.98,154.94,6.4538]
[1727714703716,6.4525,154.98,154.95,1.29044747]
[1727714703917,6.4521,154.99,154.95,1.29044747]
[1727714704117,6.4517,155.0,154.95,7.74374747]
[1727714704316,6.4517,155.0,154.95,6.4533]
[1727714704625,6.4517,155.0,154.96,1.29039841]
[1727714704812,6.4517,155.0,154.96,7.74359841]
[1727714705136,6.4513,155.01,154.96,7.74359841]
[1727714705311,6.4513,155.01,154.95,16.1337]
[1727714705513,6.4513,155.01,154.96,6.4531]
[1727714706325,2.45998792,155.03,154.95,22.5873]
[1727714708124,2.45998792,155.03,154.95,16.1337]
[1727714708328,6.4525,154.98,154.94,6.4539]
[1727714709246,6.4521,154.99,154.95,6.4536]
[1727714709642,6.4516,155.01,154.96,7.74350568]
[1727714709838,6.4516,155.01,154.97,6.4527]
[1727714710018,0.8471714,155.03,154.96,16.1329]
[1727714710226,6.4516,155.0,154.96,22.5861]
[1727714710942,0.8471714,155.03,154.97,6.4525]
[1727714711147,6.4509,155.02,154.98,1.00278931]
[1727714711641,0.8471714,155.03,154.98,1.00278931]
[1727714711642,7.2975714,155.03,154.98,16.1308]
[1727714712235,7.2975714,155.03,154.99,6.452]
[1727714712551,7.2975714,155.03,154.95,54.6216]
[1727714712552,6.4512,155.01,154.95,54.6216]
[1727714712730,6.4512,155.01,154.96,6.4531]
[1727714712938,6.4516,155.0,154.96,6.4531]
[1727714714059,6.4516,155.0,154.95,22.587]
[1727714714548,0.8471714,155.03,154.96,6.4532]
[1727714714741,6.4513,155.01,154.96,6.4532]
[1727714715246,6.4513,155.01,154.95,16.1335]
[1727714715430,6.4508,155.02,154.98,6.4521]
[1727714716042,0.8471714,155.03,154.98,6.4521]
[1727714716231,6.4508,155.02,154.98,6.4521]
[1727714717132,7.2975714,155.03,154.99,6.452]
[1727714718956,7.2975714,155.03,154.92,15.5684]
[1727714718957,1.61273762,155.02,154.92,15.5684]
[1727714719161,6.4528,154.97,154.93,6.4544]
[1727714719455,6.4533,154.96,154.92,6.4547]
[1727714719652,6.4529,154.97,154.93,6.4545]
[1727714720932,16.1168,155.01,154.94,1.29056901]
[1727714721126,16.1168,155.01,154.93,16.1357]
[1727714721127,16.1168,155.01,154.95,17.42425395]
[1727714721356,6.451,155.02,154.97,6.4525]
[1727714721648,6.451,155.02,154.98,1.29022643]
[1727714722034,6.451,155.02,154.97,6.4525]
[1727714722233,2.45990308,155.03,154.96,6.4531]
[1727714722447,2.45990308,155.03,154.95,22.5874]
[1727714722644,16.1274,155.02,154.92,16.1367]
[1727714722838,6.4531,154.97,154.93,6.4543]
[1727714723734,6.4532,154.96,154.92,22.5913]
[1727714724137,16.055,154.98,154.89,22.87566533]
[1727714724334,6.4542,154.94,154.9,6.4556]
[1727714724825,6.4538,154.95,154.9,6.4556]
[1727714725256,6.4538,154.95,154.91,6.455]
[1727714725835,6.4538,154.95,154.92,1.29071858]
[1727714726046,6.4534,154.96,154.92,6.4549]
[1727714727447,6.4529,154.97,154.91,16.1376]
[1727714727755,6.4529,154.97,154.93,6.4544]
[1727714728938,6.4529,154.97,154.94,1.29055983]
[1727714729145,6.4529,154.97,154.93,6.4544]
[1727714730251,1.61320156,154.97,154.91,16.1376]
[1727714730846,6.4533,154.96,154.92,7.74531557]
[1727714731237,6.4533,154.96,154.92,6.4546]
[1727714733348,16.055,154.98,154.93,7.74475248]
[1727714733549,12.9461,154.99,154.93,17.42635248]
[1727714733945,32.5597,155.02,154.93,1.29065248]
[1727714734244,6.4516,155.0,154.96,6.4531]
[1727714734444,6.4513,155.01,154.97,1.29033299]
[1727714734647,22.883,155.02,154.97,6.4525]
[1727714734832,22.883,155.02,154.98,1.29029479]
[1727714735440,6.4512,155.01,154.97,6.4525]
[1727714735659,6.4512,155.01,154.96,6.4531]
[1727714736032,6.4512,155.01,154.97,6.4528]
[1727714737950,6.4512,155.01,154.98,1.29027097]
[1727714738146,18.04483992,155.02,154.95,16.1339]
[1727714738349,6.452,154.99,154.95,22.5875]
[1727714738935,6.452,154.99,154.96,1.29041356]
[1727714739455,6.4513,155.01,154.96,1.29041356]
[1727714739637,6.4513,155.01,154.97,6.4528]
[1727714740750,6.4513,155.01,154.96,6.4531]
[1727714741551,6.4513,155.01,154.97,1.29027192]
[1727714741964,6.4513,155.01,154.97,7.74307192]
[1727714742253,6.4513,155.01,154.97,6.4528]
[1727714744840,6.4516,155.0,154.96,6.4531]
[1727714745044,1.61285964,155.0,154.95,16.1339]
[1727714745240,6.4528,154.98,154.94,6.454]
[1727714745462,1.61319543,154.97,154.93,3.88667569]
[1727714745755,6.4539,154.95,154.91,6.4552]
[1727714745966,6.4539,154.95,154.92,3.88834626]
[1727714745967,6.4537,154.95,154.92,3.88834626]
[1727714747149,1.61338219,154.98,154.92,3.88834626]
[1727714747556,6.4534,154.96,154.92,3.88834626]
[1727714747743,6.4534,154.96,154.91,6.4552]
[1727714747943,6.4534,154.96,154.92,3.88880767]
[1727714748360,6.4534,154.96,154.91,6.4552]
[1727714748569,6.4534,154.96,154.91,10.34400767]
[1727714748743,6.4534,154.96,154.91,6.4552]
[1727714748944,6.4534,154.96,154.91,10.34400767]
[1727714749168,6.4534,154.96,154.91,6.4552]
[1727714749372,6.4534,154.96,154.91,10.34400767]
[1727714749548,6.4534,154.96,154.91,6.4552]
[1727714749753,6.4534,154.96,154.91,10.34400767]
[1727714750055,16.1305,154.99,154.92,6.4548]
[1727714750252,6.4523,154.99,154.95,6.4536]
[1727714750451,16.432,155.02,154.97,6.4527]
[1727714750749,6.4513,155.01,154.97,22.5843]
[1727714752949,6.4508,155.02,154.97,22.5843]
[1727714753164,6.4508,155.02,154.98,1.29020806]
[1727714753364,6.4508,155.02,154.97,22.5843]
[1727714754446,6.4508,155.02,154.98,1.29020732]
[1727714754969,6.4508,155.02,154.97,22.5843]
[1727714757458,6.4508,155.02,154.98,1.29020763]
[1727714758252,6.4508,155.02,154.98,7.74250763]
[1727714758447,7.2975714,155.03,154.99,6.4519]
[1727714758773,0.8471714,155.03,155.0,7.74160657]
[1727714760468,0.8471714,155.03,155.01,16.1275]
[1727714760670,0.8471714,155.03,155.01,22.5785]
[1727714761052,0.8471714,155.03,155.01,16.1275]
[1727714761251,0.8471714,155.03,155.01,22.5785]
[1727714761467,0.8471714,155.03,155.02,7.74062051]
[1727714763269,0.8471714,155.03,155.01,22.5786]
[1727714764068,0.8471714,155.03,154.97,52.30052246]
[1727714764069,0.8471714,155.03,155.0,6.4515]
[1727714764959,7.2975714,155.03,154.99,6.4519]
[1727714765167,6.4515,155.01,154.96,6.4528]
[1727714765476,1.61287465,155.0,154.95,16.1338]
[1727714765652,6.4524,154.98,154.93,6.4541]
[1727714765854,6.4529,154.97,154.93,6.4541]
[1727714767380,1.61304144,155.02,154.93,6.4541]
[1727714767553,6.4525,154.98,154.93,6.4541]
[1727714769460,6.4521,154.99,154.94,1.29055406]
[1727714769859,6.4521,154.99,154.94,6.454]
[1727714770081,32.3393714,155.03,154.9,6.74233063]
[1727714770082,1.61309237,154.98,154.9,6.74233063]
[1727714770270,6.4537,154.95,154.9,6.4557]
[1727714771081,6.3151,154.98,154.91,6.4553]
[1727714771274,6.4533,154.96,154.91,6.4553]
[1727714771782,6.4533,154.96,154.92,1.29075546]
[1727714772663,6.4533,154.96,154.93,1.29075786]
[1727714772864,6.4533,154.96,154.92,6.4549]
[1727714773261,6.4537,154.95,154.91,22.5931]
[1727714773883,6.3151,154.98,154.91,22.5931]
[1727714774065,6.4533,154.96,154.91,22.5931]
[1727714775078,6.3151,154.98,154.88,16.1409]
[1727714775280,6.3151,154.98,154.87,13.20026302]
[1727714775281,6.4553,154.91,154.87,13.20026302]
[1727714775481,6.456,154.9,154.85,16.1442]
[1727714775786,6.4565,154.89,154.85,16.1442]
[1727714776290,6.4565,154.89,154.85,22.6018]
[1727714776484,16.1366,154.93,154.81,20.03642246]
[1727714776485,6.4566,154.88,154.81,20.03642246]
[1727714776676,15.3216,154.9,154.83,6.4585]
[1727714776883,1.6142781,154.89,154.83,6.4585]
[1727714777259,6.4575,154.86,154.82,22.6064]
[1727714777669,6.4575,154.86,154.82,16.1474]
[1727714778476,6.4575,154.86,154.82,22.6064]
[1727714778673,15.3216,154.9,154.83,1.29154552]
[1727714778871,6.4571,154.87,154.83,1.29154552]
[1727714779275,15.3216,154.9,154.83,1.29154552]
[1727714779770,21.7774,154.9,154.85,6.4578]
[1727714781685,12.9966,154.91,154.86,6.457]
[1727714781870,12.9966,154.91,154.86,1.29120674]
[1727714782076,12.9966,154.91,154.84,16.1451]
[1727714782691,6.4565,154.89,154.84,22.6032]
[1727714783395,6.4565,154.89,154.84,16.1451]
[1727714783596,6.4565,154.89,154.85,6.4577]
[1727714788073,6.4565,154.89,154.86,1.291307]
[1727714788274,12.9969,154.91,154.87,6.4569]
[1727714788505,6.4556,154.91,154.88,1.29116918]
[1727714789098,6.4556,154.91,154.87,6.4569]
[1727714790595,32.2382,154.94,154.86,16.143]
[1727714790596,8.06979457,154.9,154.86,22.6004]
[1727714790797,6.4558,154.9,154.86,22.6004]
[1727714791697,6.4558,154.9,154.86,16.143]
[1727714793319,6.4554,154.91,154.87,7.7478936]
[1727714794619,16.1027,154.94,154.88,16.1411]
[1727714794802,22.5569,154.94,154.9,6.4557]
[1727714794978,22.5569,154.94,154.88,16.1411]
[1727714795304,1.61369104,154.93,154.88,16.1411]
[1727714795515,1.61369104,154.93,154.85,16.1439]
[1727714795680,6.4563,154.89,154.85,22.6017]
[1727714795884,6.4563,154.89,154.85,16.1439]
[1727714796393,6.4566,154.88,154.83,6.4585]
[1727714797077,6.457,154.87,154.83,6.4585]
[1727714798793,6.4567,154.88,154.84,1.29147376]
[1727714798988,6.4567,154.88,154.83,6.4585]
[1727714799909,1.61433873,154.92,154.83,6.4585]
[1727714800113,6.457,154.87,154.83,6.4585]
[1727714802417,6.457,154.87,154.84,1.29151232]
[1727714803108,6.457,154.87,154.83,6.4585]
[1727714803807,6.457,154.87,154.84,1.29149777]
[1727714804311,6.457,154.87,154.83,6.4585]
[1727714806910,6.457,154.87,154.84,1.29150086]
[1727714807286,6.457,154.87,154.83,6.4585]
[1727714808417,12.7208,154.89,154.85,6.4578]
[1727714808918,12.7208,154.89,154.84,6.4581]
[1727714809215,6.4566,154.88,154.84,6.4581]
[1727714811311,6.4566,154.88,154.85,1.29142801]
[1727714811520,12.7208,154.89,154.85,7.74922801]
[1727714812305,12.7208,154.89,154.85,6.4578]
[1727714812495,12.7208,154.89,154.86,1.29130274]
[1727714812696,6.4558,154.9,154.86,7.74860274]
[1727714813021,6.2158,154.93,154.86,7.74860274]
[1727714813022,6.4549,154.92,154.88,6.4564]
[1727714813203,6.4549,154.92,154.89,1.29110651]
[1727714813890,6.4549,154.92,154.88,6.4564]
[1727714814514,6.4549,154.92,154.89,1.29110827]
[1727714814911,6.4549,154.92,154.88,6.4564]
[1727714816317,12.6704,154.93,154.89,6.4559]
[1727714816523,16.1027,154.94,154.89,1.29101535]
[1727714817128,22.5568,154.94,154.88,16.141]
[1727714818217,22.5568,154.94,154.9,6.4557]
[1727714818605,1.61367013,154.93,154.88,16.141]
[1727714818804,8.06827013,154.93,154.89,6.456]
[1727714819401,6.4546,154.93,154.89,6.456]
[1727714820024,8.06837713,154.93,154.89,6.456]
[1727714820320,6.4558,154.9,154.86,6.4573]
[1727714820521,6.4558,154.9,154.87,3.88928266]
[1727714821209,1.61377713,154.93,154.87,3.88928266]
[1727714821410,6.4566,154.88,154.86,3.88928266]
[1727714821730,6.4571,154.87,154.85,3.88928266]
[1727714822022,6.4575,154.86,154.84,3.88928266]
[1727714822222,1.6144943,154.85,154.83,3.88928266]
[1727714822422,1.6144943,154.85,154.8,10.34888266]
[1727714822423,6.4582,154.84,154.8,10.34888266]
[1727714822636,8.0724943,154.85,154.81,3.88928266]
[1727714822802,8.0724943,154.85,154.82,3.88928266]
[1727714823004,8.0724943,154.85,154.83,3.88928266]
[1727714823204,8.0724943,154.85,154.79,16.1504]
[1727714823205,6.458,154.85,154.81,10.35367377]
[1727714823630,6.458,154.85,154.82,3.89417377]
[1727714823831,6.458,154.85,154.83,3.89417377]
[1727714824129,8.07262362,154.85,154.82,3.89417377]
[1727714824300,8.07262362,154.85,154.83,3.89417377]
[1727714824504,8.07262362,154.85,154.82,3.89417377]
[1727714824720,8.07262362,154.85,154.83,3.89417377]
[1727714825024,8.07262362,154.85,154.81,6.4595]
[1727714825025,13.0133,154.86,154.82,3.89417377]
[1727714825231,1.61459588,154.85,154.83,3.89417377]
[1727714825523,6.5558,154.86,154.82,10.35287377]
[1727714825731,6.5558,154.86,154.83,3.89417377]
[1727714826533,6.5558,154.86,154.82,6.4587]
[1727714826712,6.4566,154.88,154.83,11.64608452]
[1727714827225,21.939,154.9,154.83,1.29154933]
[1727714827430,6.4562,154.89,154.84,6.4578]
[1727714827618,6.4562,154.89,154.84,10.35373519]
[1727714829021,8.07042048,154.89,154.84,6.4578]
[1727714829329,6.4562,154.89,154.84,6.4578]
[1727714829916,21.939,154.9,154.86,6.4573]
[1727714831138,21.939,154.9,154.87,6.4569]
[1727714831310,6.4546,154.93,154.88,6.4563]
[1727714831510,8.06894207,154.92,154.88,6.4563]
[1727714831716,6.455,154.92,154.88,6.4563]
[1727714832311,6.455,154.92,154.87,22.5987]
[1727714832511,6.4558,154.9,154.86,3.89570252]
[1727714832713,6.4558,154.9,154.85,3.89912695]
[1727714832930,6.4558,154.9,154.86,6.4573]
[1727714834046,6.4562,154.89,154.85,10.35687073]
[1727714834929,15.7576,154.94,154.85,10.35687073]
[1727714835111,6.4558,154.9,154.85,10.35687073]
[1727714837339,8.06998439,154.9,154.85,10.35687073]
[1727714837546,6.4562,154.89,154.85,10.3596145]
[1727714837731,6.4562,154.89,154.85,6.4577]
[1727714839343,6.4562,154.89,154.84,16.1451]
[1727714839532,6.4566,154.88,154.84,22.6032]
[1727714841516,16.1367,154.93,154.84,16.1451]
[1727714841719,6.4558,154.9,154.86,6.4571]
[1727714841920,6.4553,154.91,154.87,7.74817908]
[1727714842222,6.4552,154.92,154.87,6.4569]
[1727714842529,8.06952683,154.91,154.86,22.6003]
[1727714842725,6.4558,154.9,154.86,22.6003]
[1727714843146,8.07053579,154.89,154.85,6.4577]
[1727714843319,6.4565,154.89,154.84,6.4579]
[1727714843947,6.4565,154.89,154.83,48.4392]
[1727714844124,6.4565,154.89,154.85,6.4577]
[1727714846024,6.4558,154.9,154.86,6.4573]